fUST/lending_fUST_20251007
["ID","MTS","AMOUNT","RATE_DAILY","PERIOD"]
[389793767,1759850409824,-73.4443557,0.00017383,2]
[389793768,1759850440316,-226.5556443,0.00017383,2]
[389793769,1759850440339,-79.63547187,0.00017383,2]
[389793770,1759850457131,-526.45103559,0.000173,2]
[389793771,1759850470193,-235.5120272,0.00017383,2]
[389793772,1759850516346,-240.39955136,0.00017383,2]
[389793773,1759850523505,-724.08842144,0.00017383,2]
[389793774,1759850523527,-300.0,0.00017383,2]
[389793775,1759850523547,-160.0,0.00017383,2]
[389793776,1759850523570,-435.78033015,0.00017384,2]
[389793777,1759850523596,-1200.0,0.00017384,2]
[389793778,1759850523619,-46381.13124841,0.00017384,2]
[389793779,1759850545180,-159.46099019,0.00017384,2]
[389793780,1759850576562,-286.20369376,0.00017384,2]
[389793781,1759850605211,-455.55621263,0.00017384,2]
[389793782,1759850629495,-453.34,0.00017376,3]
[389793783,1759850629925,226.67,0.00017376,3]
[389793784,1759850635247,-178.05105161,0.00017384,2]
[389793785,1759850640708,680.02,0.00017376,3]
[389793786,1759850658378,2665.0,0.000287,120]
[389793787,1759850664797,-120.72805181,0.00017384,2]
[389793788,1759850664819,-54.00959326,0.00017384,2]
[389793789,1759850695482,-245.99040674,0.00017384,2]
[389793790,1759850695507,-25.68477425,0.00017385,2]
[389793791,1759850696678,151.0,0.000166,2]
[389793792,1759850697054,151.0,0.000152,2]
[389793793,1759850697448,151.0,0.000138,2]
[389793794,1759850697787,151.0,0.000124,2]
[389793795,1759850698229,151.0,0.00011,2]
[389793797,1759850718104,-1415.12412324,0.000173,2]
[389793798,1759850724444,271.67518099,0.000173,2]
[389793799,1759850725313,-151.0,0.00017376,2]
[389793800,1759850725338,-130.17350901,0.00017376,2]
[389793801,1759850731916,616.34721023,0.00017285,2]
[389793802,1759850747223,281.17350901,0.000173,2]
[389793803,1759850755240,-24.15583827,0.00017376,2]
[389793804,1759850755264,-151.0,0.00017376,2]
[389793805,1759850755296,-26.43137699,0.0001738,2]
[389793808,1759850784324,167.67882091,0.00017073,2]
[389793809,1759850785240,-168.0,0.00017378,2]
[389793810,1759850814788,-197.41388266,0.00017378,2]
[389793814,1759850845703,-266.52506399,0.00017378,2]
[389793815,1759850851039,231.32227701,0.00017073,2]
[389793819,1759850870699,-224.29855152,0.00017378,2]
[389793820,1759850873790,490.82361551,0.00017073,2]
[389793821,1759850874996,6997.965,0.00017073,2]
[389793827,1759850915990,2112.22028657,0.00015,2]
[389793828,1759850916014,10000.01,0.00015,2]
[389793829,1759850916040,10000.01,0.00015,2]
[389793830,1759850916070,10000.01,0.00015,2]
[389793831,1759850916093,10000.01,0.00015,2]
[389793832,1759850916118,10000.01,0.00015,2]
[389793833,1759850916141,10000.01,0.00015,2]
[389793834,1759850916165,8340.13954748,0.00015,2]
[389793835,1759850917618,587.38230363,0.000149,2]
[389793836,1759850925451,260.56588264,0.00015,2]
[389793852,1759850946822,5000.0,0.00017073,2]
[389793860,1759850955160,236.8628904,0.00017073,2]
[389793873,1759850970614,4763.1471096,0.00017073,2]
[389793874,1759850970640,236.8528904,0.00017073,2]
[389793875,1759850992852,5000.0,0.00017073,2]
[389793936,1759851032744,-151.0,0.00017376,2]
[389793941,1759851032775,-151.0,0.00017376,2]
[389793952,1759851032869,-339.4990522,0.00017378,2]
[389793994,1759851038656,-4325.02637143,0.00017378,2]
[389793995,1759851038665,-200.0,0.00017378,2]
[389793996,1759851038675,-401.51767261,0.0001738,2]
[389793997,1759851038685,-300.0,0.00017382,2]
[389793998,1759851038695,-388.0,0.00017383,2]
[389793999,1759851038705,-300.0,0.00017383,2]
[389794000,1759851038715,-299.60435099,0.00017383,2]
[389794001,1759851038727,-0.39564901,0.00017383,2]
[389794003,1759851038736,-300.0,0.00017383,2]
[389794005,1759851038746,-300.0,0.00017383,2]
[389794007,1759851038755,-1200.0,0.00017383,2]
[389794009,1759851038765,-160.0,0.00017384,2]
[389794011,1759851038774,-22995.96193058,0.00017384,2]
[389794013,1759851038786,-1293.82555323,0.00017384,2]
[389794017,1759851038831,-8358.30240453,0.00017384,2]
[389794019,1759851038843,-500.0,0.00017384,2]
[389794022,1759851038854,-500.0,0.00017384,2]
[389794024,1759851038865,-500.0,0.00017384,2]
[389794027,1759851038875,-500.0,0.00017384,2]
[389794028,1759851038890,-500.0,0.00017384,2]
[389794032,1759851038902,-500.0,0.00017384,2]
[389794034,1759851038912,-500.0,0.00017384,2]
[389794036,1759851038922,-500.0,0.00017384,2]
[389794038,1759851038932,-352.58314034,0.00017384,2]
[389794040,1759851038941,-500.0,0.00017384,2]
[389794043,1759851038951,-500.0,0.00017384,2]
[389794045,1759851038960,-500.0,0.00017384,2]
[389794046,1759851038970,-500.0,0.00017384,2]
[389794047,1759851038979,-456.06544572,0.00017384,2]
[389794048,1759851038989,-500.0,0.00017384,2]
[389794049,1759851038999,-500.0,0.00017384,2]
[389794050,1759851039008,-504.38265207,0.00017384,2]
[389794051,1759851039018,-500.0,0.00017384,2]
[389794052,1759851039028,-500.0,0.00017384,2]
[389794053,1759851039038,-500.0,0.00017384,2]
[389794054,1759851039047,-500.0,0.00017384,2]
[389794056,1759851039057,-500.0,0.00017384,2]
[389794058,1759851039067,-500.0,0.00017384,2]
[389794060,1759851039077,-500.0,0.00017384,2]
[389794062,1759851039087,-500.0,0.00017384,2]
[389794064,1759851039096,-500.0,0.00017384,2]
[389794066,1759851039105,-500.0,0.00017384,2]
[389794068,1759851039115,-500.0,0.00017384,2]
[389794070,1759851039125,-500.0,0.00017384,2]
[389794072,1759851039134,-500.0,0.00017384,2]
[389794074,1759851039143,-500.0,0.00017384,2]
[389794076,1759851039153,-500.0,0.00017384,2]
[389794078,1759851039162,-500.0,0.00017384,2]
[389794080,1759851039172,-500.0,0.00017384,2]
[389794082,1759851039182,-500.0,0.00017384,2]
[389794084,1759851039191,-500.0,0.00017384,2]
[389794086,1759851039201,-500.0,0.00017384,2]
[389794088,1759851039211,-500.0,0.00017384,2]
[389794090,1759851039221,-500.0,0.00017384,2]
[389794092,1759851039230,-500.0,0.00017384,2]
[389794094,1759851039239,-500.0,0.00017384,2]
[389794095,1759851039248,-500.0,0.00017384,2]
[389794097,1759851039257,-500.0,0.00017384,2]
[389794099,1759851039266,-605.9985205,0.00017384,2]
[389794101,1759851039276,-500.0,0.00017384,2]
[389794103,1759851039286,-500.0,0.00017384,2]
[389794105,1759851039295,-500.0,0.00017384,2]
[389794107,1759851039305,-474.31522575,0.00017385,2]
[389794109,1759851039314,-164.66387778,0.00017385,2]
[389794111,1759851039323,-525.23650555,0.00017385,2]
[389794113,1759851039332,-500.0,0.00017385,2]
[389794115,1759851039341,-604.15534,0.00017385,2]
[389794117,1759851039350,-200.0,0.00017386,10]
[389794119,1759851039359,-370000.0,0.00017386,2]
[389794121,1759851039369,-151.0,0.000174,2]
[389794123,1759851039378,-500.0,0.000174,2]
[389794124,1759851039387,-1000.0,0.00017484,2]
[389794126,1759851039397,-1000.0,0.00017484,2]
[389794128,1759851039406,-1000.0,0.00017484,2]
[389794130,1759851039416,-1000.0,0.00017484,2]
[389794132,1759851039426,-1000.0,0.00017484,2]
[389794134,1759851039437,-1000.0,0.00017484,2]
[389794136,1759851039446,-1000.0,0.00017484,2]
[389794138,1759851039458,-1000.0,0.00017484,2]
[389794140,1759851039468,-1000.0,0.00017484,2]
[389794142,1759851039476,-1000.0,0.00017484,2]
[389794144,1759851039485,-1000.0,0.00017484,2]
[389794146,1759851039494,-1000.0,0.00017484,2]
[389794148,1759851039503,-1000.0,0.00017484,2]
[389794150,1759851039512,-1000.0,0.00017484,2]
[389794152,1759851039521,-1000.0,0.00017484,2]
[389794154,1759851039530,-1000.0,0.00017484,2]
[389794156,1759851039540,-645.75332822,0.00017484,2]
[389794158,1759851039549,-3040.8913,0.000175,2]
[389794159,1759851039558,-966.46148311,0.00017808,7]
[389794161,1759851039568,-300.0,0.00017834,2]
[389794163,1759851039580,-300.0,0.00017834,2]
[389794165,1759851039589,-300.0,0.00017834,2]
[389794167,1759851039598,-300.0,0.00017834,2]
[389794169,1759851039606,-300.0,0.00017834,2]
[389794171,1759851039616,-300.0,0.00017834,2]
[389794173,1759851039625,-300.0,0.00017834,2]
[389794175,1759851039634,-300.0,0.00017834,2]
[389794177,1759851039643,-300.0,0.00017834,2]
[389794179,1759851039652,-300.0,0.00017834,2]
[389794181,1759851039661,-300.0,0.00017834,2]
[389794183,1759851039670,-300.0,0.00017834,2]
[389794185,1759851039679,-300.0,0.00017834,2]
[389794187,1759851039688,-300.0,0.00017834,2]
[389794189,1759851039697,-300.0,0.00017834,2]
[389794191,1759851039706,-600.0,0.00017834,2]
[389794193,1759851039715,-9138.22257711,0.00017948,2]
[389794195,1759851039725,-12244.49424529,0.0001799,2]
[389794197,1759851039734,-151.0,0.00018,2]
[389794199,1759851039743,-151.0,0.00018,2]
[389794201,1759851039752,-3226.48878925,0.00018,2]
[389794203,1759851039761,-339.91243257,0.00018,5]
[389794205,1759851039770,-151.0,0.000181,2]
[389794207,1759851039780,-470.74395456,0.0001818,2]
[389794209,1759851039790,-1000.0,0.00018356,2]
[389794211,1759851039803,-170.0,0.00018496,2]
[389794213,1759851039812,-12531.98298489,0.000185,2]
[389794215,1759851039821,-345.0,0.00018519,2]
[389794217,1759851039830,-357.45124576,0.000186,2]
[389794219,1759851039839,-1000.0,0.0001863,2]
[389794221,1759851039847,-151.0,0.000187,2]
[389794223,1759851039858,-906.68,0.00018746,3]
[389794224,1759851039867,-453.34,0.00018746,3]
[389794226,1759851039878,-151.0,0.000188,2]
[389794228,1759851039887,-1000.0,0.00018904,2]
[389794230,1759851039896,-339.0,0.00018978,2]
[389794232,1759851039905,-381.0,0.00018979,2]
[389794234,1759851039915,-420.0,0.00018979,2]
[389794236,1759851039925,-300.0,0.00018979,2]
[389794237,1759851039935,-420.0,0.00018979,2]
[389794238,1759851039944,-513.53885952,0.0001898,2]
[389794239,1759851039953,-151.0,0.00019,2]
[389794240,1759851039962,-7654.60951866,0.00019063,7]
[389794241,1759851039972,-1680.0,0.00019073,2]
[389794242,1759851039981,-160.0,0.00019161,2]
[389794243,1759851039990,-402.02512307,0.00019161,2]
[389794244,1759851039999,-234.20938206,0.00019161,2]
[389794245,1759851040008,-533.72506543,0.00019161,2]
[389794246,1759851040017,-1000.0,0.00019178,2]
[389794247,1759851040027,-151.36892429,0.00019178,2]
[389794248,1759851040037,-3307.59957628,0.00019178,2]
[389794249,1759851040046,-151.0,0.000192,2]
[389794250,1759851040055,-151.0,0.000194,2]
[389794251,1759851040064,-151.0,0.000194,2]
[389794252,1759851040073,-1000.0,0.00019452,2]
[389794253,1759851040082,-355.66107437,0.00019473,2]
[389794254,1759851040092,-500.0,0.00019473,2]
[389794255,1759851040101,-500.59789819,0.00019473,2]
[389794256,1759851040110,-501.12521816,0.00019473,2]
[389794257,1759851040120,-500.0,0.00019473,2]
[389794258,1759851040129,-500.0,0.00019473,2]
[389794259,1759851040138,-500.0,0.00019473,2]
[389794260,1759851040147,-500.0,0.00019473,2]
[389794261,1759851040156,-500.97618271,0.00019473,2]
[389794262,1759851040166,-500.0,0.00019473,2]
[389794263,1759851040175,-150.0,0.00019473,2]
[389794264,1759851040184,-502.85302733,0.00019473,2]
[389794265,1759851040193,-500.0,0.00019473,2]
[389794267,1759851040203,-151.0,0.000195,2]
[389794268,1759851040212,-372345.1,0.000195,2]
[389794270,1759851040222,-151.0,0.000195,2]
[389794272,1759851040231,-301.60032361,0.00019502,2]
[389794274,1759851040240,-714.90249152,0.00019556,2]
[389794276,1759851040249,-300.0,0.0001961,2]
[389794278,1759851040258,-1231.8487149,0.00019615,2]
[389794280,1759851040267,-720.0,0.00019617,2]
[389794282,1759851040276,-151.0,0.000197,2]
[389794284,1759851040285,-1000.0,0.00019726,2]
[389794285,1759851040294,-528.52332229,0.00019747,2]
[389794287,1759851040303,-556.33376448,0.0001978,2]
[389794289,1759851040312,-257.05708716,0.00019985,7]
[389794291,1759851040321,-303.04464238,0.0002,2]
[389794292,1759851040332,-1000.0,0.0002,2]
[389794293,1759851040341,-234.05807603,0.0002,2]
[389794294,1759851040350,-14517.33720406,0.0002,2]
[389794296,1759851040359,-40270.8605035,0.0002,20]
[389794298,1759851040368,-366.95511062,0.0002,2]
[389794299,1759851040377,-23000.0,0.0002,2]
[389794301,1759851040386,-17574.71196574,0.0002,2]
[389794303,1759851040397,-179.9640072,0.0002,2]
[389794305,1759851040407,-1000.0,0.0002,4]
[389794307,1759851040417,-160.0,0.00020018,2]
[389794309,1759851040426,-1000.0,0.00020021,2]
[389794311,1759851040435,-1000.0,0.00020021,2]
[389794312,1759851040444,-1000.0,0.00020021,2]
[389794314,1759851040453,-1000.0,0.00020021,2]
[389794316,1759851040462,-1000.0,0.00020021,2]
[389794318,1759851040471,-1000.0,0.00020021,2]
[389794320,1759851040480,-274.862601,0.00020114,2]
[389794322,1759851040489,-151.0,0.000202,3]
[389794324,1759851040499,-168.01695143,0.00020222,2]
[389794326,1759851040509,-1000.0,0.00020273,2]
[389794328,1759851040519,-174.6845,0.00020278,2]
[389794330,1759851040527,-184.11331394,0.00020329,3]
[389794331,1759851040536,-500.0,0.00020344,2]
[389794333,1759851040546,-500.0,0.00020344,2]
[389794335,1759851040554,-501.75538328,0.00020344,2]
[389794337,1759851040564,-500.0,0.00020344,2]
[389794338,1759851040573,-501.44821906,0.00020344,2]
[389794339,1759851040582,-500.0,0.00020344,2]
[389794340,1759851040591,-1000.0,0.00020547,2]
[389794341,1759851040601,-260.0,0.00020566,2]
[389794342,1759851040843,-1606.1442599,0.00020568,2]
[389794343,1759851040854,-1500.0,0.00020568,2]
[389794344,1759851040863,-347.91586692,0.00020568,2]
[389794345,1759851040872,-1500.0,0.00020568,2]
[389794346,1759851040881,-263.76126891,0.00020568,2]
[389794347,1759851040890,-1500.0,0.00020568,2]
[389794348,1759851040899,-599.12866944,0.0002058,2]
[389794349,1759851040908,-1372.26531713,0.0002061,2]
[389794350,1759851040917,-1072.35373728,0.00020613,2]
[389794351,1759851040926,-587.0,0.00020721,2]
[389794352,1759851040936,-523.0,0.00020721,2]
[389794353,1759851040945,-630.0,0.00020731,2]
[389794354,1759851040954,-2158.0,0.00020731,2]
[389794355,1759851040963,-151.0,0.000208,3]
[389794356,1759851040972,-151.0,0.000208,3]
[389794357,1759851040981,-1000.0,0.00020821,2]
[389794358,1759851040990,-1000.0,0.00020892,2]
[389794359,1759851040999,-1000.0,0.00020892,2]
[389794360,1759851041008,-1012.5295479,0.00020892,2]
[389794361,1759851041018,-1000.0,0.00020892,2]
[389794362,1759851041027,-151.0,0.000209,3]
[389794363,1759851041036,-253.09677656,0.000209,2]
[389794364,1759851041045,-2931.0,0.00020916,2]
[389794365,1759851041054,-2351.0,0.00020926,2]
[389794366,1759851041062,-2200.737,0.00020937,2]
[389794367,1759851041072,-200.0,0.00021,2]
[389794368,1759851041081,-10000.0,0.00021,5]
[389794369,1759851041090,-273.56835318,0.00021,2]
[389794370,1759851041099,-524.9888995,0.00021,10]
[389794371,1759851041107,-204.65924008,0.00021,2]
[389794372,1759851041117,-151.70599437,0.00021095,2]
[389794373,1759851041126,-360.0,0.00021114,2]
[389794374,1759851041135,-2000.0,0.00021116,2]
[389794375,1759851041144,-2000.0,0.00021116,2]
[389794376,1759851041153,-590.40964009,0.00021116,2]
[389794377,1759851041162,-999.99999901,0.000212,2]
[389794378,1759851041171,-641.9235744,0.0002138,2]
[389794379,1759851041180,-1000.0,0.000214,2]
[389794380,1759851041189,-1000.0,0.000214,2]
[389794381,1759851041198,-1000.0,0.000214,2]
[389794382,1759851041207,-1000.0,0.000214,2]
[389794383,1759851041218,-1000.0,0.000214,2]
[389794384,1759851041227,-1000.0,0.000214,2]
[389794385,1759851041237,-1000.0,0.000214,2]
[389794386,1759851041246,-1000.0,0.000214,2]
[389794387,1759851041256,-1000.0,0.000214,2]
[389794388,1759851041265,-1000.0,0.000214,2]
[389794389,1759851041274,-391.570509,0.000214,2]
[389794390,1759851041283,-197.0,0.00021425,4]
[389794391,1759851041293,-1500.0,0.0002144,2]
[389794392,1759851041302,-1500.0,0.0002144,2]
[389794393,1759851041311,-1500.0,0.0002144,2]
[389794394,1759851041321,-153.151123,0.00021489,2]
[389794395,1759851041330,-12685.86082688,0.000215,2]
[389794396,1759851041340,-200.0,0.0002151,2]
[389794397,1759851041349,-864.0,0.00021579,20]
[389794398,1759851041358,-460.0,0.00021662,2]
[389794399,1759851041368,-1624.02490268,0.00021664,2]
[389794400,1759851041378,-2500.0,0.00021664,2]
[389794401,1759851041387,-1429.80498304,0.00021669,2]
[389794402,1759851041397,-151.0,0.000217,4]
[389794403,1759851041406,-200.0,0.0002171,2]
[389794404,1759851041416,-200.0,0.0002181,2]
[389794405,1759851041425,-500.0,0.00021851,2]
[389794406,1759851041435,-500.0,0.00021855,2]
[389794407,1759851041444,-200.0,0.0002191,2]
[389794408,1759851041453,-279.06357233,0.00021924,2]
[389794409,1759851041463,-19361.94710176,0.00021963,2]
[389794410,1759851041472,-2000.0,0.00021988,2]
[389794411,1759851041481,-2000.0,0.00021988,2]
[389794412,1759851041490,-2000.0,0.00021988,2]
[389794413,1759851041499,-36953.97279197,0.00021998,2]
[389794414,1759851041509,-11375.88556264,0.00022,7]
[389794415,1759851041518,-533.72506543,0.00022,7]
[389794416,1759851041526,-402.02512307,0.00022,7]
[389794417,1759851041535,-160.0,0.00022,7]
[389794418,1759851041547,-100110.16958302,0.00022,5]
[389794419,1759851041556,-286.30950538,0.00022,7]
[389794420,1759851041565,-151.0,0.00022102,7]
[389794421,1759851041574,-221.129594,0.00022102,7]
[389794422,1759851041582,-151.0,0.00022102,7]
[389794423,1759851041591,-221.129594,0.00022102,7]
[389794424,1759851041601,-151.0,0.00022102,7]
[389794425,1759851041610,-221.129594,0.00022102,7]
[389794426,1759851041619,-151.0,0.00022102,7]
[389794427,1759851041628,-151.0,0.00022102,7]
[389794428,1759851041638,-221.129594,0.00022102,7]
[389794429,1759851041647,-151.0,0.00022102,7]
[389794430,1759851041656,-500.0,0.00022109,2]
[389794431,1759851041664,-500.0,0.00022131,2]
[389794432,1759851041674,-684.71847936,0.0002218,2]
[389794433,1759851041683,-500.0,0.0002219,2]
[389794434,1759851041693,-151.0,0.000222,10]
[389794435,1759851041702,-151.0,0.000222,8]
[389794436,1759851041712,-200.0,0.0002221,2]
[389794437,1759851041721,-560.0,0.0002221,2]
[389794438,1759851041731,-3000.0,0.00022212,2]
[389794439,1759851041740,-298.40604511,0.0002225,2]
[389794440,1759851041750,-501.60946266,0.0002225,2]
[389794441,1759851041759,-500.0,0.00022341,8]
[389794442,1759851041768,-151.0,0.000224,8]
[389794443,1759851041779,-200.19353786,0.0002242,2]
[389794444,1759851041789,-500.0,0.0002242,2]
[389794445,1759851041801,-500.0,0.0002242,2]
[389794446,1759851041810,-500.0,0.0002242,2]
[389794447,1759851041820,-282.32951854,0.0002242,2]
[389794448,1759851041829,-500.0,0.0002242,2]
[389794449,1759851041840,-500.0,0.0002242,2]
[389794450,1759851041849,-500.0,0.0002242,2]
[389794451,1759851041858,-627.73257475,0.0002242,2]
[389794452,1759851041868,-500.0,0.0002242,2]
[389794453,1759851041878,-500.0,0.0002242,2]
[389794454,1759851041888,-203.67230258,0.0002242,2]
[389794455,1759851041897,-526.71245322,0.0002242,2]
[389794456,1759851041907,-500.0,0.0002242,2]
[389794457,1759851041916,-161.55304732,0.0002242,2]
[389794458,1759851041925,-500.0,0.0002242,2]
[389794459,1759851041935,-500.0,0.0002242,2]
[389794460,1759851041944,-500.0,0.0002242,2]
[389794461,1759851041954,-500.0,0.0002242,2]
[389794462,1759851041964,-500.0,0.0002242,2]
[389794463,1759851041973,-500.0,0.0002242,2]
[389794464,1759851041983,-500.0,0.0002242,2]
[389794465,1759851041994,-517.91923232,0.0002242,2]
[389794466,1759851042004,-500.0,0.0002242,2]
[389794467,1759851042013,-530.76335332,0.0002242,2]
[389794468,1759851042022,-510.46914813,0.0002242,2]
[389794469,1759851042031,-500.0,0.0002242,2]
[389794470,1759851042041,-500.0,0.0002242,2]
[389794471,1759851042051,-1908.575005,0.00022465,2]
[389794472,1759851042060,-151.0,0.00022465,7]
[389794473,1759851042069,-151.0,0.00022465,7]
[389794474,1759851042079,-151.0,0.00022465,7]
[389794475,1759851042088,-203.490105,0.00022465,7]
[389794476,1759851042097,-10000.0,0.00022465,7]
[389794477,1759851042106,-10000.0,0.00022465,7]
[389794478,1759851042115,-203.490105,0.00022465,7]
[389794479,1759851042125,-10000.0,0.00022465,7]
[389794480,1759851042134,-203.490105,0.00022465,7]
[389794481,1759851042143,-151.0,0.00022465,7]
[389794482,1759851042152,-1274.9628,0.00022465,7]
[389794483,1759851042162,-10000.0,0.00022465,7]
[389794484,1759851042171,-203.490105,0.00022465,7]
[389794485,1759851042180,-1274.9628,0.00022465,7]
[389794486,1759851042189,-356.78048,0.00022465,7]
[389794487,1759851042198,-8062.122574,0.00022465,7]
[389794488,1759851042208,-1274.9628,0.00022465,7]
[389794489,1759851042217,-237.070353,0.00022465,7]
[389794490,1759851042227,-356.78048,0.00022465,7]
[389794491,1759851042236,-1274.9628,0.00022465,7]
[389794492,1759851042245,-237.070353,0.00022465,7]
[389794493,1759851042255,-356.78048,0.00022465,7]
[389794494,1759851042264,-151.0,0.00022465,7]
[389794495,1759851042274,-151.0,0.00022465,7]
[389794496,1759851042284,-237.070353,0.00022465,7]
[389794497,1759851042295,-356.78048,0.00022465,7]
[389794498,1759851042305,-151.0,0.00022465,7]
[389794499,1759851042314,-237.070353,0.00022465,7]
[389794500,1759851042324,-246.970974,0.00022465,7]
[389794501,1759851042333,-246.970974,0.00022465,7]
[389794502,1759851042342,-246.970974,0.00022465,7]
[389794503,1759851042352,-246.970974,0.00022465,7]
[389794504,1759851042361,-151.0,0.00022465,7]
[389794505,1759851042370,-256.0,0.00022465,7]
[389794506,1759851042380,-256.0,0.00022465,7]
[389794507,1759851042389,-256.0,0.00022465,7]
[389794508,1759851042399,-256.0,0.00022465,7]
[389794509,1759851042408,-533.72506543,0.0002247,7]
[389794510,1759851042418,-402.02512307,0.0002247,7]
[389794511,1759851042427,-1019.28476954,0.000225,2]
[389794512,1759851042436,-1000.0,0.000225,4]
[389794513,1759851042446,-200.0,0.0002251,2]
[389794514,1759851042455,-2500.0,0.00022536,2]
[389794515,1759851042464,-2500.0,0.00022536,2]
[389794516,1759851042474,-2500.0,0.00022536,2]
[389794517,1759851042482,-500.0,0.00022596,2]
[389794518,1759851042492,-500.0,0.000226,2]
[389794519,1759851042502,-500.0,0.000226,2]
[389794520,1759851042513,-823.0,0.00022623,2]
[389794521,1759851042522,-500.0,0.0002265,2]
[389794522,1759851042531,-500.0,0.0002265,2]
[389794523,1759851042542,-500.0,0.0002265,2]
[389794524,1759851042551,-500.0,0.0002265,2]
[389794525,1759851042560,-151.0,0.0002265,2]
[389794526,1759851042569,-500.0,0.0002265,2]
[389794527,1759851042578,-156.72031789,0.0002265,2]
[389794528,1759851042588,-500.0,0.0002265,2]
[389794529,1759851042598,-13207.5438705,0.0002265,2]
[389794530,1759851042608,-500.0,0.0002265,2]
[389794531,1759851042618,-598.44763185,0.0002265,2]
[389794532,1759851042627,-500.0,0.00022659,8]
[389794533,1759851042636,-2000.0,0.000227,2]
[389794534,1759851042645,-800.0,0.00022713,2]
[389794535,1759851042656,-1787.2562288,0.00022726,2]
[389794536,1759851042665,-660.0,0.00022758,2]
[389794537,1759851042674,-3500.0,0.0002276,2]
[389794538,1759851042683,-500.0,0.0002279,2]
[389794539,1759851042692,-125241.05088674,0.00022821,2]
[389794540,1759851042700,-666.66666667,0.00022821,2]
[389794541,1759851042710,-666.66666667,0.00022821,2]
[389794542,1759851042719,-500.0,0.00022837,2]
[389794543,1759851042728,-500.0,0.00022852,2]
[389794544,1759851042738,-1009.489455,0.000229,2]
[389794545,1759851042747,-200.0,0.0002291,2]
[389794546,1759851042756,-800.0,0.00022921,2]
[389794547,1759851042766,-666.66666667,0.00022958,4]
[389794548,1759851042775,-666.66666667,0.00022958,4]
[389794549,1759851042785,-3292.0,0.0002296,2]
[389794550,1759851042795,-695.0,0.0002296,2]
[389794551,1759851042808,-800.0,0.00022962,2]
[389794552,1759851042816,-157.29,0.00022965,2]
[389794553,1759851042826,-1000.0,0.00022968,2]
[389794554,1759851042835,-415.05287444,0.00022968,2]
[389794555,1759851042844,-1000.0,0.00022968,2]
[389794556,1759851042854,-1000.0,0.00022968,2]
[389794557,1759851042863,-1000.0,0.00022968,2]
[389794558,1759851042873,-1000.0,0.00022968,2]
[389794561,1759851042883,-1000.0,0.00022968,2]
[389794562,1759851042893,-1000.0,0.00022968,2]
[389794563,1759851042902,-1000.0,0.00022968,2]
[389794564,1759851042911,-1000.0,0.00022968,2]
[389794566,1759851042921,-742.43363358,0.00022968,2]
[389794567,1759851042930,-1000.0,0.00022968,2]
[389794568,1759851042939,-329.31214133,0.00022968,2]
[389794569,1759851042948,-1000.0,0.00022968,2]
[389794570,1759851042958,-1000.0,0.00022968,2]
[389794571,1759851042968,-1000.0,0.00022968,2]
[389794573,1759851042977,-213.64385673,0.00022968,2]
[389794574,1759851042987,-513.94319584,0.00022971,2]
[389794576,1759851042996,-800.0,0.00022972,2]
[389794578,1759851043005,-727.51338432,0.0002298,2]
[389794580,1759851043015,-800.0,0.00022986,2]
[389794582,1759851043024,-160.0,0.00023,2]
[389794584,1759851043033,-5318.00114445,0.00023,2]